Cogmind - Beta 11.1 @@@ ROGUE MODE // 2022.06.23 @ 10:13:54 Player: Demise Result: Destroyed by as-13251 with Assembled Rifle Performance ------------- Evolutions (0) 0 Regions Visited (2) 400 Robots Destroyed (53) 265 Value Destroyed (745) 745 Prototype IDs (4) 80 Alien Tech Used (0) 0 Bonus (-38) -38 TOTAL SCORE: 1452 Bonus ------- Friendly Fire -38 Cogmind --------- Core Integrity 0/250 Matter 170/300 Energy 160/160 System Corruption 2% Temperature Cool (5) Movement Rolling (95) Ox1 Location -10/Mines Parts ------- > --- POWER (1) -------- Light Nuclear Core > --- PROPULSION (2) --- Wheel Wheel > --- UTILITY (2) ------ Large Storage Unit Light Armor Plating > --- WEAPON (2) ------- Light Assault Rifle Grenade Launcher > --- INVENTORY (15) --- Wheel Flight Unit Flight Unit Flight Unit Medium Storage Unit Huge Storage Unit Structural Scanner Seismic Detector Hardened Medium Armor Plating Hacking Suite Improved Trap Extractor (0/6) Light Assault Rifle Light Assault Rifle Datajack Great Maul Peak State ------------ > --- POWER ------------ Light Nuclear Core > --- PROPULSION ------- Wheel Wheel > --- UTILITY ---------- Large Storage Unit Seismic Detector > --- WEAPON ----------- Light Assault Rifle Light Assault Rifle > --- INVENTORY -------- Wheel Flight Unit Flight Unit Flight Unit Medium Storage Unit Huge Storage Unit Structural Scanner Light Armor Plating Hardened Medium Armor Plating Hacking Suite Improved Trap Extractor Light Assault Rifle Light Assault Rifle Grenade Launcher Datajack [Rating: 11] Favorites ----------- Power Ion Engine Engine Ion Engine Power Core Light Nuclear Core Propulsion Wheel Wheel Wheel Utility Seismic Detector Device Seismic Detector Storage Large Storage Unit Processor Signal Interpreter Protection Light Armor Plating Weapon Light Assault Rifle Energy Gun Small Laser Ballistic Gun Light Assault Rifle Launcher Grenade Launcher Build | -11 -10 -10 ------- Run | Scr Mat Min Slots Evolved . | . . . Power . | . . . Propulsion . | . . . Utility . | . . . Weapon . | . . . Parts Attached 53 | 9 23 21 Power 5 | 1 2 2 Engine 4 | 1 2 1 Core 1 | . . 1 Reactor . | . . . Propulsion 14 | 3 7 4 Treads . | . . . Leg . | . . . Wheel 14 | 3 7 4 Hover . | . . . Flight . | . . . Utility 21 | 3 10 8 Device 12 | 2 6 4 Storage 3 | 1 2 . Processor 2 | . 1 1 Hackware . | . . . Protection 4 | . 1 3 Artifact . | . . . Weapon 13 | 2 4 7 Energy Gun 1 | 1 . . Energy Cannon . | . . . Ballistic Gun 9 | 1 4 4 Ballistic Cannon . | . . . Launcher 3 | . . 3 Special Weapon . | . . . Impact Weapon . | . . . Slashing Weapon . | . . . Piercing Weapon . | . . . Special Melee Weapon . | . . . Unidentified Prototypes . | . . . Parts Lost 8 | . 7 1 Power 3 | . 2 1 Propulsion 4 | . 4 . Utility . | . . . Weapon 1 | . 1 . Highest Loss Streak 3 | . 3 1 To Critical Strikes . | . . . Average Slot Usage (%) 97 | . 96 99 Engine 9 | . 13 1 Core 3 | . . 11 Wheel 27 | . 26 28 Device 9 | . 9 9 Storage 14 | . 14 14 Protection 2 | . 2 3 Ballistic Gun 27 | . 27 27 Naked Turns . | . . . Heaviest Build 32 | 11 30 32 Greatest Support 20 | 20 20 20 Greatest Overweight (x) 4 | . 4 2 Average Overweight (x) . | . . 1 Largest Inventory Capacity 15 | 8 15 15 Average Capacity 12 | 6 12 15 Most Carried 15 | 8 15 15 Average Carried 12 | 4 11 15 Final Capacity 15 | 8 15 15 Final Carried 15 | 8 15 15 Class Distribution -------------------- 80% | Scavenger-Mutant 19% | Mutant Dominant Class ---------------- Scavenger-Mutant | -10/Materials Scavenger-Mutant | -10/Mines Resources | -11 -10 -10 ----------- Run | Scr Mat Min Matter Collected 947 | 313 394 240 Remotely . | . . . Salvage Created 1392 | 198 876 318 Parts 126 | 25 73 28 Haulers Intercepted 1 | . 1 . Recyclers Shooed 2 | . . 2 Parts Field Recycled . | . . . Retrieved Matter . | . . . Parts Self-Destructed . | . . . Prevented . | . . . Kills | -11 -10 -10 ------- Run | Scr Mat Min Combat Hostiles Destroyed 31 | . 18 13 Guns 22 | . 18 4 AOE 9 | . . 9 Classes Destroyed 10 | 3 6 1 Worker 7 | 2 5 . Builder 3 | . 1 2 Tunneler 6 | 5 . 1 Hauler 1 | . 1 . Recycler 3 | 1 1 1 Operator 2 | . 2 . Watcher 3 | . 3 . Swarmer 16 | . 8 8 Grunt 12 | . 10 2 Assembled 3 | . . 3 Best Kill Streak 6 | 6 5 5 Combat Bots Only 5 | . 5 5 Max Kills in Single Turn 3 | 1 1 3 Gunslinging . | . . . Exploded 3 | . . 3 Melee . | . . . Uniques/NPCs Destroyed . | . . . Combat | -11 -10 -10 -------- Run | Scr Mat Min Damage Taken 1199 | . 727 472 Core 262 | . 140 122 Absorbed by Shields . | . . . Regen/Repaired (Parts) 66 | . 66 . Core Remaining (%) 100 | 100 . . Volleys Fired 175 | 23 110 42 Largest 2 | 2 2 2 Hottest 60 | 60 60 50 Shots Fired 345 | 46 221 78 Gun 339 | 46 221 72 Cannon . | . . . Launcher 6 | . . 6 Special . | . . . Kinetic 310 | 23 215 72 Thermal 29 | 23 6 . Explosive 6 | . . 6 Electromagnetic . | . . . Robot Hit Streak 15 | 6 15 9 Robot Miss Streak 5 | 2 5 4 Penetration Max . | . . . Secondary Targets . | . . . Shots Hit Robots 226 | 31 149 46 Core Hits 102 | 12 60 30 Critical Kills 3 | . . 3 Critical Parts Destroyed 2 | . . 2 Critical Strikes 5 | . . 5 Destroy 5 | . . 5 Melee Attacks . | . . . Impact . | . . . Slashing . | . . . Piercing . | . . . Sneak Attacks . | . . . Combat Hostiles . | . . . Follow-up Attacks . | . . . Damage Inflicted 2468 | 302 1261 905 Guns 1955 | 302 1261 392 Cannons . | . . . Explosions 513 | . . 513 Melee . | . . . Ramming . | . . . Kinetic 1725 | 139 1194 392 Thermal 230 | 163 67 . Explosive 513 | . . 513 Electromagnetic . | . . . Impact . | . . . Slashing . | . . . Piercing . | . . . Highest Corruption 2 | . 2 2 Average Corruption 1 | . 1 2 Corruption Purged . | . . . Corruption Blocked . | . . . Effects 13 | . 5 8 Message Errors 5 | . . 5 Matter Fused 3 | . 2 1 Energy Discharges 1 | . . 1 Parts Rejected 1 | . . 1 Data Loss (minor) 1 | . 1 . Data Loss (major) 1 | . 1 . Misfires 1 | . 1 . Overload Shots . | . . . Overflow Damage 26 | . . 26 Projectiles . | . . . Explosions 26 | . . 26 Melee . | . . . Knockbacks . | . . . Impact . | . . . Kinetic . | . . . Secondary . | . . . Self-Inflicted Damage 21 | . . 21 Shots 1 | . . 1 Rammed . | . . . Targets Rammed . | . . . Kicked . | . . . Crushed . | . . . Highest Temperature 72 | 40 40 72 Average Temperature 13 | 17 9 16 Received Heat Transfer 408 | . 276 132 Siege Activations . | . . . Robots Corrupted . | . . . Combat Hostiles . | . . . Parts Fried . | . . . Impact Corruptions . | . . . Robots Melted . | . . . Combat Hostiles . | . . . Parts Melted . | . . . Heat Transferred 525 | 375 150 . Parts Sabotaged . | . . . Parts Stolen . | . . . Parts Stripped . | . . . Power Chain Reactions . | . . . Missiles Intercepted . | . . . Alert | -11 -10 -10 ------- Run | Scr Mat Min Peak Influence 386 | 40 386 306 Initial 106 | . 26 106 Average 185 | 18 217 158 Maximum Alert Level 1 | . 1 1 Low Security (%) 64 | 100 49 87 Level 1 35 | . 50 12 Level 2 . | . . . Level 3 . | . . . Level 4 . | . . . Level 5 . | . . . High Security . | . . . Max Security . | . . . Squads Dispatched 6 | . 6 . Investigation 4 | . 4 . Extermination . | . . . Reinforcement 2 | . 2 . Assault . | . . . Garrison . | . . . Intercept . | . . . Searches Triggered . | . . . Construction Impeded . | . . . Haulers Reinforced . | . . . Active Scanning Responses . | . . . Cargo Convoy Interrupts . | . . . Stealth | -11 -10 -10 --------- Run | Scr Mat Min Distress Signals 2 | . 2 . Communications Jammed . | . . . Distress Signals . | . . . Times Spotted 48 | . 32 16 Peak Tracking Total 6 | . 5 6 Tactical Retreats 4 | . 2 2 Traps | -11 -10 -10 ------- Run | Scr Mat Min Traps Triggered 1 | . 1 . Indirectly . | . . . Trap Hack Attempts . | . . . Triggered . | . . . Disarmed . | . . . Reprogrammed . | . . . Reused . | . . . Traps Extracted . | . . . Installed . | . . . Triggered . | . . . Machines | -11 -10 -10 ---------- Run | Scr Mat Min Machines Disabled . | . . . Max in Single Turn . | . . . Machines Sabotaged . | . . . Garrisons Compromised . | . . . Overloaded Fab Kills . | . . . Hacking | -11 -10 -10 --------- Run | Scr Mat Min Machines Accessed 10 | . 9 1 Terminals 6 | . 6 . Fabricators . | . . . Repair Stations 1 | . 1 . Recycling Units 2 | . 2 . Scanalyzers . | . . . Garrison Access . | . . . Total Hacks 37 | . 36 1 Successful 26 | . 25 1 Failed 10 | . 10 . Catastrophic . | . . . Database Lockouts 1 | . 1 . Manual 25 | . 25 . Terminals 28 | . 28 . Fabricators . | . . . Repair Stations 3 | . 3 . Recycling Units 5 | . 5 . Scanalyzers . | . . . Garrison Access . | . . . Terminal Hacks 13 | . 12 1 Robot Analysis 7 | . 7 . Prototype ID Bank 2 | . 2 . Open Door 1 | . . 1 Terminal Index 1 | . 1 . Locate Traps 1 | . 1 . Hauler Manifests 1 | . 1 . Fabricator Hacks . | . . . Repair Station Hacks 2 | . 2 . Scan Component 1 | . 1 . Repair 1 | . 1 . Recycling Unit Hacks 3 | . 3 . Retrieve Components 3 | . 3 . Scanalyzer . | . . . Garrison Access Hacks . | . . . Unauthorized Hacks 8 | . 8 . Terminals 6 | . 6 . Botnet 5 | . 5 . Operators 1 | . 1 . Fabricators . | . . . Repair Stations . | . . . Recycling Units 2 | . 2 . Tunnel 2 | . 2 . Scanalyzers . | . . . Garrison Access . | . . . Data Cores Recovered . | . . . Used . | . . . Hacking Detections 8 | . 8 . Full Trace Events 3 | . 3 . Feedback Events 1 | . 1 . Corruption 1 | . 1 . Feedback Blocked . | . . . Robot Schematics Acquired . | . . . Robots Built . | . . . Authchips . | . . . Time . | . . . Total Robot Build Rating . | . . . Part Schematics Acquired . | . . . Parts Built . | . . . Authchips . | . . . Time . | . . . Total Part Build Rating . | . . . Parts Repaired 1 | . 1 . Time 13 | . 13 . Parts Recycled . | . . . Recycled Matter . | . . . Retrieved Matter . | . . . Retrieved Components 10 | . 10 . Parts Scanalyzed . | . . . Part Schematics Acquired . | . . . Parts Damaged . | . . . Bothacking | -11 -10 -10 ------------ Run | Scr Mat Min Used RIF Installer . | . . . Robots Hacked . | . . . Non-combat . | . . . Combat . | . . . Robot Hacks Applied . | . . . Relay Couplers Released . | . . . Fabnet Peak Effective % . | . . . Robots Rewired . | . . . Allies Hacked . | . . . Hacks Repelled . | . . . Allies | -11 -10 -10 -------- Run | Scr Mat Min Total Allies 1 | . . 1 Largest Group 1 | . . 1 Highest-Rated Group 31 | . . 31 Highest-Rated Ally 31 | . . 31 Total Orders . | . . . Ally Attacks 3 | . . 3 Total Damage 22 | . . 22 Kills . | . . . Allies Corrupted . | . . . Allies Melted . | . . . Intel | -11 -10 -10 ------- Run | Scr Mat Min Robot Analysis Total 7 | . 7 . Derelict Logs Recovered 1 | . . 1 Drone Launches . | . . . Drone Recoveries . | . . . Exploration | -11 -10 -10 ------------- Run | Scr Mat Min Turns Passed 1960 | 136 1230 594 Spaces Moved 1429 | 65 892 472 Core 43 | 25 18 . Treads . | . . . Legs . | . . . Wheels 1386 | 40 874 472 Hover . | . . . Flight . | . . . Fastest Speed 50 | 50 80 95 Average Speed 91 | 68 91 95 Slowest Speed 250 | 80 250 110 Overloaded Moves . | . . . Propulsion Burnouts . | . . . Robots Hopped . | . . . Cave-ins Triggered . | . . . Exploration Rate (%) 60 | 3 98 79 Regions Visited 2 Branch Regions 1 Pre-discovered Areas 2 | . 2 . Known Exits Taken 1 | . 1 . Unknown Exits Taken 1 | 1 . . Scrap Searched 1 | . . 1 Spaces Dug 38 | . . 38 Terrain Destroyed 46 | . . 46 Melee . | . . . Projectile . | . . . AOE 46 | . . 46 Terrain Rammed . | . . . Walls Destroyed . | . . . Machines Disabled . | . . . Actions | -11 -10 -10 --------- Run | Scr Mat Min Total 1809 | 115 1136 558 Wait 74 | . 72 2 Move 1427 | 64 891 472 Hop . | . . . Pick Up 40 | 14 20 6 Fast Attach 17 | 4 8 5 Attach 12 | 4 8 . Detach 4 | 1 2 1 Swap 24 | 1 7 16 Drop 36 | 4 18 14 Fire 175 | 23 110 42 Melee . | . . . Ram . | . . . Kick . | . . . Crush . | . . . Escape Stasis . | . . . Rewire . | . . . Trap . | . . . Miscellaneous . | . . . Route ------- -11/Scrapyard -10/Materials (discovered 4 exits: *Mat x3 / *Min) -10/Mines (discovered 3 exits: *Mat x2 / *Exi) History --------- Turn | Location | Event 9 | -11/Scrapyard | Discovered new exit (range 16) 137 | -11/Scrapyard | Entered Materials 301 | -10/Materials | Lost 3 parts (1p2n) 315 | -10/Materials | Build established: Mutant 498 | -10/Materials | Discovered new exit (range 13) 558 | -10/Materials | Discovered new exit (range 14) 598 | -10/Materials | Identified exit to Materials 629 | -10/Materials | Identified exit to Mines 652 | -10/Materials | Build established: Scavenger-Mutant 806 | -10/Materials | Central database locked down 856 | -10/Materials | Repaired Lgt. Assault Rifle 1129 | -10/Materials | Core integrity fell below 50% 1186 | -10/Materials | Discovered exit to Materials (range 5) 1237 | -10/Materials | Discovered exit to Materials (range 16) 1367 | -10/Materials | Entered Mines 1434 | -10/Mines | Discovered exit to Materials (range 6) 1439 | -10/Mines | Met a Derelict who couldn't figure out how to use a Trap Extractor 1467 | -10/Mines | Discovered exit to Materials (range 10) 1512 | -10/Mines | Deemed a non-threat by the Exiles lab entrance 1512 | -10/Mines | Discovered new exit (range 5) 1586 | -10/Mines | Identified exit to Exiles 1761 | -10/Mines | Core integrity fell below 20% 1914 | -10/Mines | Assembled infested the area 1920 | -10/Mines | Learned Materials interactive machine intel 1952 | -10/Mines | Received a Mining Laser from a helpful Derelict 1961 | -10/Mines | Destroyed by as-13251 with Assembled Rifle Last Messages --------------- 01885_ Dropped Wheel. 01891_ T-07 Excavator destroyed. 01895_ U-05 Engineer builds a Wall. 01899_ Acquired 22 matter. 01901_ Dropped Seismic Detector. 01914_ ALERT: Infestation in the mines, dispatching Demolisher response squad. 01920_ Acquired derelict log, extracted data. Data stored: Materials interactive machine intel. 01934_ S-10 Pest destroyed. 01940_ Acquired 5 matter. 01941_ S-10 Pest destroyed. 01950_ A derelict emerges from the shadows: "What are you doing alone down here?" 01952_ 7F-XD8(g): "And why aren't you carrying a mining laser?! Certainly you don't want THEM to uncover you when the ceiling comes crashing down? Here, take my spare." 01955_ 7F-XD8(g): "You're apparently new around these parts, I'll cover you." 01958_ as-45447 destroyed. 01958_ as-25360 destroyed. 01958_ as-67255 destroyed. 01960_ 7F-XD8(g): "Mining lasers are a lot more useful than you might think..." Map ----- +----------------------------------------------------+ | ###????????# ????????????????? | | ???????????? ???????????????? | | ????????????? #???????????????? | | ?????????????# #???????????????? | | ?????????????# #???????????????? | | #????????????# ###?????????????? | | #???????????# ##????######### | | #??????????## ###### # | | ??????????## * % ## | | ?????????## % # | | ?????????# #######= # | | ###??##### ##?????#### ## | | #??# #??????#### #? | | = #??# ### ##????## #? | | # #### ### ##??## #? | | # ## #??# #? | | # ###### #??# ##? | | # ##### ##??# ####?? | | # | ! ###???# % #????? | | = * ! #######?????# % ##???? | | ! ###??????????? a% ##??? | | ##?????????????# g #??? | | ##??????????????# #??? | | ##???????????????# | #??? | | ##????????????????## ##??? | | #??????????????????#@ ##???? | | #?????????????????# ##????? | | #??????????????? ##?????? | | #????????????? #???????? | | ## #???????????? #????????? | | ?### ##???????????####?????????? | | ???####?????????????????????????? | | ????????????????????????????????? | | ????????????????????????????????? | | ????????????????????????????????? | | ????????????????????????????????? | | ????????????????????????????????? | | ????????????????????????????????? | | ????????????????????????????????? | | ????????????????????????????????? | | ????????????????????????????????? | | | | | | | | | | | | | | | | | | | +----------------------------------------------------+ Best States ------------- Heat Dissipation 25 Energy Generation 14 Energy Capacity 250 Matter Stores 300 Matter Capacity 300 Sight Range 16 Terrain Scan Density 10 Armor Coverage 150 Evasion (%) 50 Item Schematics ----------------- None Robot Schematics ------------------ None Fabricated ------------ Nothing Alien Tech Used ----------------- None Achievements -------------- None Challenges ------------ None Game ------ Seed GravmagTargetLance Manual? 0 Play Time 00:22:42 Cumulative 636.9 hours Start 2022.06.23 @ 09:55:34 End 2022.06.23 @ 10:13:54 Sessions 1 Manual Loads 0 Difficulty Rogue Special Mode None Game No. 511 Rogue 511 Adventurer 0 Explorer 0 Win Type - Total 8 Types 7/0/0/1/0/0/0/0/0 Lore% 74 Gallery% 86 Achievement% 68 Wizard Run 0 Options --------- ASCII 0 Keyboard 1 Movement Numpad Keybinds 0 Fullscreen 1 Font 12/Terminus Map View 83x54 Tactical HUD 1 Map Filters NONE Filters NONE Steam 1 RUN: 283efcd3-8ae3-4019-b101-7e2d506cdb05